[Event "Svetozar Gligoric Masters 2022"]
[Site "Belgrade"]
[Date "2022.07.21"]
[Round "6.12"]
[White "Srihari L R"]
[Black "Milosevic, Milos"]
[Result "1-0"]
[ECO "A49"]
[WhiteElo "2431"]
[BlackElo "2288"]
[Annotator "TA"]
[PlyCount "141"]
[EventDate "2022.07.18"]
[EventCountry "SRB"]
[SourceTitle "playchess.com"]
[Source "ChessBase"]
[SourceQuality "1"]
[TimeControl "40/5400+30:900+30"]

{[%evp 15,141,22,22,10,19,21,16,0,0,0,0,-3,-4,-15,-6,-8,2,10,16,14,12,25,12,0,0,0,9,0,0,0,23,54,59,62,57,60,60,68,64,63,57,60,75,58,63,0,72,0,52,8,39,36,41,0,0,0,54,64,52,51,69,69,69,69,69,69,69,69,69,59,60,59,59,59,58,56,67,13,23,8,8,0,7,7,8,0,66,8,8,8,8,8,170,170,599,170,170,170,170,170,170,170,170,170,170,170,170,170,170,170,29980,29981,29981,29982,29982,29983,29983,29984,29984,29985,29985,29986,29984,29984,29983,29983,29983,29983]} 1. Nf3 Nf6 2. g3 d5 3. Bg2 c5 4. O-O g6 5. d4 cxd4 6. Nxd4 Bg7 7. Nc3 {Recently 7.Nb3 got a lot of attention.} O-O 8. Nb3 e6 9. e4 {A49: 1 d4 Nf6 2 Nf3 g6 3 g3: Anti-King's Indian systems.} dxe4 10. Nxe4 Nxe4 11. Bxe4 {The position is equal.} Qc7 12. Qe2 Bd7 13. Bf4 e5 14. Be3 Bc6 {[#]} 15. Qc4 $146 ({Predecessor:} 15. Bc5 Rd8 16. Rfd1 Bxe4 17. Rxd8+ Qxd8 18. Rd1 Qe8 19. Qxe4 Nc6 20. Rd6 Rc8 21. c3 {0-1 (35) Kovacs,Z (2269)-Horvath,P (2441) Hungary 2001}) 15... Rc8 16. Rfd1 b5 17. Qd3 Bxe4 18. Qxe4 Nd7 19. Qd3 Nf6 20. c3 a6 21. Qd6 (21. Bg5 {looks sharper.} Rd8 22. Qf3 e4 23. Qe2) 21... Qxd6 22. Rxd6 a5 23. a4 bxa4 24. Rxa4 Rab8 25. Nxa5 {Nc6 is the strong threat.} Rxb2 26. Nc6 Rb7 {Prevents Ne7+.} 27. Nxe5 Rbc7 28. Rd3 h5 29. Bb6 Rb7 30. Be3 {0x0.001f24472105dp-1022s more active pieces.} Rbc7 31. Bb6 Rb7 32. Rc4 Re8 33. Bd4 h4 34. Kg2 Ne4 35. Nf3 hxg3 (35... Bxd4 $11 36. Rdxd4 h3+ 37. Kxh3 Nxf2+ 38. Kg2 Rb2) 36. hxg3 $14 Rb2 37. Be3 {[%cal Oc4e4]} Nxf2 38. Bxf2 Ree2 {Against Nd2} 39. Rc8+ $1 Bf8 {[#]} 40. Rd2 $1 Rbxd2 41. Nxd2 Rxd2 {[%mdl 4096] Endgame KRB-KRB} 42. Kf3 {Black must now prevent Bc5.} Rd5 {Prevents Bc5.} 43. c4 Rf5+ 44. Ke2 {Strongly threatening c5.} f6 45. c5 Re5+ 46. Kf3 (46. Kd3 $14 Kf7 47. Kc4) 46... Kf7 47. c6 Re8 {Inhibits Rd8.} 48. Rc7+ Ke6 49. Rh7 Rc8 50. Rh8 {And now Be1 would win.} Kd6 (50... Kf7 $11) 51. Be1 (51. Bd4 Kxc6 52. Bxf6 Rb8 $11) ({White should play} 51. Be3 $1 $14) 51... Kc7 $1 $11 52. Ba5+ Kb8 $1 ({Much less strong is} 52... Kxc6 53. Bb4 Bxb4 54. Rxc8+ Kd5 55. Rg8 $18) 53. Rg8 g5 $2 {This costs Black the game.} (53... Bd6 $11 {and Black stays safe.} 54. Rxg6 Be5) 54. g4 $18 {Hoping for Ke4.} Ba3 $2 (54... Bd6 {is more resistant.} 55. Rxc8+ Kxc8) 55. Rxc8+ $2 (55. Rd8 Be7 56. c7+ Kb7 57. Ke4) 55... Kxc8 {KB-KB} 56. Ke4 Bc1 57. Bc3 Kc7 {[#]} 58. Kd5 ({Don't do} 58. Bxf6 $6 Kxc6 59. Kf5 Kd7 $16) 58... Be3 59. Bxf6 Bc1 60. Be5+ Kc8 61. Ke6 Bd2 62. Kf5 Bc1 $2 (62... Be3 $18 63. Ke4 Bf2) 63. Bf6 {White mates.} Kc7 64. Bxg5 Ba3 65. Bf4+ Kxc6 {[#]} 66. Ke6 $1 ({Stronger than} 66. g5 Kd7 $11) 66... Bb2 67. g5 {[%cal Bg4g5,Bg5g6][%mdl 32]} Bg7 68. Be5 Bf8 69. g6 Bh6 70. Kf7 Kd5 {[#]} 71. Bf4 $1 {[%mdl 512] Weighted Error Value: White=0.22 (precise) /Black=0.24 (precise)} 1-0

[Event "Svetozar Gligoric Masters 2022"]
[Site "Belgrade"]
[Date "2022.07.21"]
[Round "6.13"]
[White "Gavrilov, Maxim"]
[Black "Shahil Dey"]
[Result "1/2-1/2"]
[ECO "E46"]
[WhiteElo "2216"]
[BlackElo "2402"]
[Annotator "TA"]
[PlyCount "88"]
[EventDate "2022.07.18"]
[EventCountry "SRB"]
[SourceTitle "playchess.com"]
[Source "ChessBase"]
[SourceQuality "1"]
[TimeControl "40/5400+30:900+30"]

{[%evp 16,88,0,0,0,-22,-20,-43,-30,-26,0,0,0,0,0,-4,31,22,18,0,20,-8,0,0,39,0,0,-7,12,-26,-22,-27,-16,-29,0,0,0,-9,0,-43,-25,-47,-29,-42,-43,-56,0,0,63,14,27,15,5,8,8,0,48,0,0,0,0,0,151,147,132,132,132,139,126,0,0,0,0,0,0]} 1. d4 Nf6 2. c4 e6 3. Nc3 Bb4 4. e3 O-O 5. Nge2 d5 6. a3 Be7 7. cxd5 exd5 8. Nf4 c6 9. Bd3 Bd6 {E46: Nimzo-Indian: Rubinstein: 4 e3 0-0 5 Ne2 without early Bd3.} 10. Nfe2 Re8 11. Qc2 Nbd7 {Black is slightly better.} 12. Bd2 c5 {[#]} 13. Nb5 $146 ({Predecessor:} 13. h3 c4 14. Bf5 g6 15. Bg4 Nb6 16. Bxc8 Rxc8 17. f3 Nh5 18. O-O-O Ng3 19. Nxg3 Bxg3 {0-1 (60) Skalkotas,N (2345)-Jakobsen,O (2420) Thessaloniki 1984}) 13... Bf8 14. dxc5 $1 Nxc5 15. O-O Bg4 16. Bc3 {Threatening Bxf6.} Nfe4 17. Nf4 g5 18. Be2 Bf5 19. Nd4 Bd7 20. Nd3 Nxc3 21. bxc3 Ne4 22. Rfc1 (22. Nb4 $5 {[%cal Rb4d5]}) 22... Rc8 23. Qb3 {[%csl LRb7,LRd5]} Bg7 24. Bh5 Nf6 25. Bf3 Qa5 26. Nb4 {[%cal Rb4d5]} Be6 27. Nxe6 fxe6 28. c4 {[%cal Rc4d5]} g4 29. Be2 Ne4 30. Ra2 b5 (30... Qb6 $15 31. Rac2 (31. Bxg4 a5 $17) 31... a5 32. cxd5 Rxc2 33. Qxc2 Nxf2) 31. c5 $1 $11 Nxc5 (31... Rxc5 $11 32. Rxc5 Nxc5) 32. Qd1 (32. Qb1 $1 $14) 32... Ne4 {Hoping for ...Nc3.} 33. Rxc8 Rxc8 34. Bxg4 Re8 $132 {[%mdl 2048] And now ...Nc3 would win. Black is not holding back} 35. Qb3 Qa4 (35... Qb6 $11) 36. Bxe6+ Rxe6 37. Qxd5 Kf7 (37... Nc5 38. g3 $16 (38. Rc2 Qxa3 39. Qxc5 Bf8 $11)) 38. Rc2 {Threatens to win with Rc7+.} Qxa3 $2 (38... Nf6 $11 39. Rc7+ Kf8 40. Qc5+ Kg8) 39. Rc7+ $1 $16 Kf8 {[#]} 40. Rc8+ $1 {[%mdl 1024] White has strong compensation.} Kf7 41. Qh5+ Rg6 {[#]} 42. Qd5+ (42. Rc7+ Kg8 43. Qd5+ Kh8 44. Rc8+ Bf8 45. Rxf8+ Kg7 $11) (42. Qf5+ $1 $16 Nf6 43. Rc7+ (43. Nd3 Qd6 $18) 43... Kg8 44. Qe6+ Kh8 45. Rc8+ Bf8 46. Rxf8+ Kg7 47. Rf7+ Kh8 48. Rf8+ Kg7 49. Rf7+ Kh8 50. Rf8+) 42... Re6 $11 {The position is equal.} 43. Rc7+ Kf8 $1 {( -> ...Qa1+)} 44. Rc8+ Kf7 {Weighted Error Value: White=0.14 (very precise) /Black=0.22 (precise)} 1/2-1/2

[Event "Svetozar Gligoric Masters 2022"]
[Site "Belgrade"]
[Date "2022.07.21"]
[Round "6.14"]
[White "Muthaiah AL"]
[Black "Baasansuren, Erdene"]
[Result "1-0"]
[ECO "D37"]
[WhiteElo "2401"]
[BlackElo "2243"]
[Annotator "TA"]
[PlyCount "149"]
[EventDate "2022.07.18"]
[EventCountry "SRB"]
[SourceTitle "playchess.com"]
[Source "ChessBase"]
[SourceQuality "1"]
[TimeControl "40/5400+30:900+30"]

{[%evp 9,149,25,31,25,31,32,34,31,33,25,34,27,17,18,20,25,19,25,25,40,29,15,27,11,28,25,25,14,39,34,36,0,0,0,0,0,0,0,0,-7,21,6,20,22,60,12,21,0,12,12,37,0,37,12,14,20,23,14,15,0,0,0,0,0,8,8,16,30,30,0,30,30,31,39,31,0,8,14,30,30,30,30,30,30,30,33,31,0,0,0,8,0,0,0,0,0,0,5,0,2,87,87,87,87,101,87,264,214,195,87,101,55,140,33,45,45,433,368,2320,2086,2156,2742,2450,2050,2120,1978,29970,4667,29982,29983,29983,29984,29984,29984,29984,29985,29985,29986,29986,29987,29987,29986]} 1. d4 d5 2. c4 e6 3. Nf3 Nf6 {[%cal Bg8f6,Bf6d5,Bd5c3][%mdl 32]} 4. Nc3 Nbd7 5. Bf4 dxc4 6. e3 {D37: Queen's Gambit Declined: 5 Bf4.} b5 7. Nxb5 Bb4+ 8. Nc3 {White is slightly better.} Nd5 9. a3 ({Reject} 9. Bxc4 Nxc3 10. bxc3 Bxc3+ 11. Ke2 Bxa1 12. Qxa1 O-O $15) 9... Nxc3 10. Qd2 {[%mdl 64] Pin} Nd5 11. axb4 {White wants to play Bg3.} Nxf4 12. exf4 Bb7 13. Be2 O-O 14. O-O Nb6 15. Ne5 Qd6 16. Rac1 {[#]} (16. Bxc4 $2 f6 17. b3 fxe5 18. fxe5 Qe7 $19) 16... Rfb8 $146 ({Predecessor:} 16... Rfd8 17. Rfd1 Rab8 18. Nxc4 Nxc4 19. Bxc4 Bc6 20. b3 Rxb4 21. Ra1 Bb5 22. Bxb5 Rxb5 23. Rxa7 {½-½ (30) Zhang,Z (2360)-Wang,C (2495) China 2018}) 17. Nxc4 ({And not} 17. Bxc4 f6 18. f5 (18. Nf3 $2 Nxc4 19. Rxc4 Ba6 $19) 18... fxe5 $17) (17. Rfd1 {feels hotter.} a6 18. g3 Qd5 19. Bf3) 17... Nxc4 18. Bxc4 Bc6 19. Be2 Rb6 {[#]} 20. Rxc6 $1 Rxc6 ({Don't play} 20... Qxc6 21. Bf3 Qe8 22. Bxa8 Qxa8 23. Rc1 $14) 21. Bf3 Rd8 22. Bxc6 Qxc6 $11 {[%mdl 4096] Endgame KQR-KQR} 23. g3 $1 Qb6 24. Rd1 Rb8 25. Qc3 Qxb4 26. Qxc7 g6 27. h4 (27. Qxa7 $14 Rb5 28. Qa3) 27... Qb7 28. Qc5 Qxb2 29. Qxa7 Qb6 30. Qe7 {[%cal Oh4h5]} Qd8 31. Qc5 Qd5 (31... Ra8 {with more complications.} 32. Kg2 Ra4 33. Qe5 Ra5) 32. Qxd5 (32. Rc1 {is interesting.} Qf3 33. Qc6 Qd3 34. Qc3) 32... exd5 {KR-KR} 33. Rd3 h5 34. f5 Kg7 35. fxg6 Kxg6 36. Kg2 Rb1 37. Kf3 Re1 38. Ra3 {Strongly threatening Ra6+.} Re4 $1 39. Rd3 Kf5 40. Kg2 Kg6 41. Kf1 Rg4 $1 42. Kg2 {And now f3 would win.} Re4 43. Rd2 Kf5 44. f3 Re3 45. Kf2 Rb3 46. Ke2 Rb4 47. Ke3 Rb1 48. Ra2 Rb3+ 49. Ke2 {Ra5 is the strong threat.} Rb4 50. Rd2 f6 51. Ke3 Rb3+ 52. Rd3 Rb2 53. Ra3 Rg2 $1 54. Ra8 Rb2 (54... Rxg3 $11 {keeps the balance.} 55. Rh8 Ke6) 55. Rh8 Rb3+ 56. Ke2 Rb2+ 57. Kf1 Kg6 (57... Rb1+ $16 58. Kg2 Rb2+ 59. Kh3 Kg6) 58. Rd8 $18 Rb5 {[#]} 59. Kf2 (59. g4 $1 $18) 59... Kf5 $16 60. Rh8 (60. Rd6 $16) 60... Kg6 $1 $14 {[#]} 61. g4 ({White should try} 61. Rg8+ $1 $16 Kf5 62. Rh8) 61... hxg4 62. fxg4 {Black must now prevent Rd8.} f5 $2 {[%mdl 8192]} (62... Rb2+ $1 $14 63. Ke3 Rg2) 63. h5+ $18 {[%cal Bh4h5,Bh5h6][%mdl 32]} Kg5 $2 (63... Kg7 64. Rd8 fxg4) 64. Rg8+ Kf4 65. h6 {White threatens h7 and mate.} Rb2+ 66. Ke1 {Threatens to win with h7.} Rh2 67. g5 Kg3 68. Rf8 (68. Rh8 $142 Kh4 69. g6 Kg3 70. g7 Rh1+ 71. Kd2 Rh2+ 72. Kc3 Rh5 73. g8=Q+ Kf2 74. Qxd5) 68... f4 69. g6 {White mates.} Rh1+ 70. Kd2 Rh2+ 71. Kc3 Rxh6 72. g7 Rg6 73. g8=Q Rxg8 74. Rxg8+ Kf2 75. Rg5 {Weighted Error Value: White=0.09 (flawless) /Black=0.10 (very precise)} 1-0

[Event "Svetozar Gligoric Masters 2022"]
[Site "Belgrade"]
[Date "2022.07.21"]
[Round "6.15"]
[White "Kushagra Mohan"]
[Black "Ilamparthi A R"]
[Result "0-1"]
[ECO "B23"]
[WhiteElo "2359"]
[BlackElo "2153"]
[Annotator "TA"]
[PlyCount "75"]
[EventDate "2022.07.18"]
[EventCountry "SRB"]
[SourceTitle "playchess.com"]
[Source "ChessBase"]
[SourceQuality "1"]
[TimeControl "40/5400+30:900+30"]

{[%evp 9,75,0,10,0,0,0,74,77,102,83,72,87,80,83,90,38,40,31,68,0,41,25,51,-22,-22,-31,-28,-170,-181,-162,-168,-150,-165,-300,-341,-334,-334,-328,-298,-318,-272,-315,-312,-292,-296,-300,-289,-379,-378,-1879,-1810,-1523,-1437,-1766,-1535,-5202,-2188,-12849,-5206,-29961,-29962,-29961,-29960,-29956,-11992,-29964,-29957,-4610]} 1. e4 c5 2. Nc3 d6 3. d4 cxd4 4. Qxd4 Nc6 5. Qd2 g6 6. b3 {B23: Closed Sicilian: Lines without g3.} Bh6 7. f4 e5 {[#]} (7... a5 $11 {remains equal.}) 8. Nb5 $1 $16 {White is better.} Bxf4 9. Qxd6 Qxd6 (9... Qh4+ $2 10. g3 Qe7 11. Nc7+ Kf8 12. Qxe7+ Ngxe7 13. gxf4 $18) 10. Nxd6+ Kf8 11. Bxf4 exf4 {[#]} 12. Nf3 $146 (12. Bc4 $16) ({Predecessor:} 12. O-O-O Nf6 13. Nf3 Bg4 14. Bb5 Bxf3 15. gxf3 Ne5 16. Be2 Rb8 17. a4 Ke7 18. Rd2 {½-½ (42) Xu,X (2582)-Alonso Rosell,A (2548) Moscow 2019}) 12... Ke7 $14 13. O-O-O {Black must now prevent Bb5.} Nh6 {[%cal Bg8h6,Bh6g4,Bg4e3][%mdl 32]} 14. Bc4 ({White should try} 14. Nb5 $14) 14... Rd8 15. e5 Ng4 16. Rhe1 ({And not} 16. Nxf7 Rxd1+ 17. Rxd1 Ne3 $17) ({White should play} 16. Rde1 $1 $14) 16... Ne3 $1 $11 {...Bg4 is the strong threat.} 17. Rd2 ({But not} 17. Bxf7 $2 Nxd1 18. Kxd1 Bg4 $19) 17... Bg4 {Hoping for ...Bxf3.} 18. Rf2 {White does not recover from this.} (18. Nd4 $11) 18... Bxf3 $19 19. Rxf3 {Threatens to win with Rexe3.} Nxg2 {Pair of Knights!} 20. Re2 {And now Rf1 would win.} Nd4 $1 {[%csl LRe2,LRf3]} 21. Rxg2 (21. Rff2 $142 Nxe2+ 22. Bxe2) 21... Nxf3 22. Nxf7 Rd4 {[%cal Od4c4]} 23. Rf2 {[#]} Rxc4 $1 {[%mdl 512]} 24. bxc4 Kxf7 25. Rxf3 {[%mdl 4096] Endgame KR-KR} g5 {[%cal Bg6g5,Bg5g4,Bg4g3][%mdl 32]} 26. Kd2 Ke6 27. Rh3 Rh8 ({Worse is} 27... Kxe5 28. Rxh7 Rd8+ 29. Ke2 $17) 28. Rh5 h6 29. h4 $2 (29. a4) 29... g4 {Strongly threatening ...g3.} 30. Ke2 b6 31. Kf2 Rh7 32. c3 Rh8 (32... g3+ $142 33. Kg2 Rg7 34. Rxh6+ Kxe5) 33. Ke2 g3 34. Kf3 Rg8 35. Rxh6+ Kxe5 36. Rh5+ Kf6 {( -> ...g2)} 37. Kg2 f3+ 38. Kxf3 {Weighted Error Value: White=1.28/Black=0.31} 0-1

[Event "Svetozar Gligoric Masters 2022"]
[Site "Belgrade"]
[Date "2022.07.21"]
[Round "6.16"]
[White "Ohanyan, Emin"]
[Black "Bazyrtsyrenov, Kirill"]
[Result "1/2-1/2"]
[ECO "B38"]
[WhiteElo "2354"]
[BlackElo "2147"]
[Annotator "TA"]
[PlyCount "202"]
[EventDate "2022.07.18"]
[EventCountry "SRB"]
[SourceTitle "playchess.com"]
[Source "ChessBase"]
[SourceQuality "1"]
[TimeControl "40/5400+30:900+30"]

{[%evp 24,202,50,0,0,0,0,0,0,0,2,0,0,0,0,-13,0,0,47,0,0,0,0,0,0,0,0,0,0,0,27,11,14,24,67,48,79,0,0,-8,0,0,0,0,0,0,0,0,0,0,0,0,0,0,0,0,21,21,21,21,21,21,21,21,21,21,21,21,21,21,21,21,80,80,80,80,80,80,80,80,80,80,80,21,80,21,21,21,21,21,21,21,21,21,21,7,7,7,7,7,8,7,8,8,80,7,8,8,8,7,7,7,7,7,7,7,7,7,7,7,7,7,7,7,7,0,7,0,7,0,7,0,7,7,7,7,7,7,8,8,8,8,8,8,8,0,8,8,8,8,8,8,8,8,8,8,8,8,8,8,8,8,8,8,8,0,0,0,0,0,0,0,0,0,0,0,0,0,0,0,0]} 1. e4 c5 2. Nf3 Nc6 3. d4 cxd4 4. Nxd4 g6 5. c4 Bg7 6. Be3 Nf6 7. Nc3 d6 8. Be2 O-O 9. O-O Bd7 {[%cal Bc8d7,Bd7c6,Bc6d5][%mdl 32]} 10. Rc1 Nxd4 11. Bxd4 Bc6 12. f3 {12.Qd3 is vanishing.} a5 13. c5 (13. Be3 $14) 13... e5 $11 {B38: Sicilian: Maroczy Bind with 5...Bg7 and 7...0-0.} 14. Bf2 d5 15. exd5 Nxd5 16. Nxd5 {[#]} Bxd5 $146 ({Predecessor:} 16... Qxd5 17. Bc4 Qxd1 18. Rcxd1 Rfd8 19. b3 Bh6 20. Rfe1 Rxd1 21. Rxd1 Bg5 22. a3 Kf8 {1-0 (45) Janssen,R (2290)-Spiridonov,N (2395) Cannes 1998}) 17. Qc2 Qf6 18. Bd3 Qe6 19. Be4 Rfd8 20. Rfd1 Rac8 (20... Bh6 $11 {feels stronger.} 21. Ra1 Bc6) 21. Qa4 (21. Qd2 $14 Bxe4 22. Qxd8+ Rxd8 23. Rxd8+ Bf8 24. fxe4) 21... Bxe4 22. fxe4 Bh6 23. Ra1 Bd2 24. Qc2 Bg5 25. a3 Rxd1+ 26. Rxd1 Be7 27. b4 axb4 28. axb4 Ra8 {[%cal Bc8a8,Ba8a2,Ba2b2][%mdl 32]} 29. h3 Ra2 {[#]} 30. Qd3 ({White should try} 30. Qc3 $1 $16) 30... Rb2 $1 ({Resist} 30... Qf6 31. Bg3 $16) 31. Qb5 Qc6 32. Qxc6 bxc6 {[%mdl 4096] Endgame KRB-KRB} 33. Be1 f5 34. exf5 gxf5 35. Bc3 {[%csl LRb2,LRe5]} Rb3 36. Bxe5 Rxb4 37. Bd6 Bg5 38. Re1 Re4 39. Ra1 Be7 40. Ra6 Bxd6 $1 41. cxd6 {KR-KR} Kf7 42. Rxc6 Ke6 43. Kf2 h5 44. d7+ Kxd7 45. Rf6 Re5 46. Rh6 Ke7 47. Kf3 Kf7 (47... Rb5 $11 {remains equal.}) 48. Rxh5 $16 {Threatens to win with Kf4.} Kg6 49. Rh8 Ra5 50. Re8 Ra3+ 51. Re3 Ra4 52. Re6+ Kg5 {[#]} 53. Re8 ({White should play} 53. g3 $1 $16) 53... Ra3+ (53... Rf4+ $11 54. Kg3 Ra4) 54. Kf2 (54. Re3 $16 Ra1 55. g3) 54... Ra2+ $11 55. Kg3 Ra3+ 56. Kh2 Kg6 57. Rg8+ Kf7 58. Rg5 Kf6 59. h4 Ra4 60. Kh3 Ra1 61. Rg8 Kf7 62. Rb8 Ra3+ 63. Kh2 Kg6 (63... Ra4 $11) 64. Rg8+ (64. Rb4 $16) 64... Kf7 {The position is equal.} 65. Rg3 Ra4 $1 66. h5 {[%cal Bh4h5,Bh5h6,Bh6h7][%mdl 32]} Rh4+ 67. Rh3 Re4 68. h6 Kg8 69. h7+ Kh8 70. Rh5 Re7 71. Kg3 Rg7+ 72. Kh3 Rg6 73. Kh2 Rg7 74. Kh3 Rg6 75. g3 Rg7 76. Kh4 Rg4+ 77. Kh3 Rg7 78. Rxf5 Kxh7 79. Kh4 {Intending Rh5+ and mate.} Ra7 80. Kh5 Ra6 81. Rf7+ Kg8 82. Rb7 Ra5+ 83. Kg6 {[%cal Rb7b8]} Ra6+ 84. Kh5 Ra5+ 85. Kh4 Ra4+ 86. g4 Ra5 87. g5 Ra4+ 88. Kh5 Ra6 89. Re7 Rb6 90. Kg4 Rb4+ 91. Kf5 Rb5+ 92. Kg6 {[%cal Re7e8]} Rb6+ 93. Kh5 Ra6 (93... Kf8 $5 {[%cal Rf8e7]} 94. Ra7 Kg8 $11) 94. g6 Ra1 95. Kh6 {[%cal Re7e8]} Rh1+ 96. Kg5 Rg1+ 97. Kf6 {[%cal Re7e8]} Rf1+ 98. Ke6 Re1+ 99. Kf6 Rxe7 {[%mdl 64] Remove Defender} 100. Kxe7 Kg7 101. Ke8 Kxg6 {Weighted Error Value: White=0.10 (very precise) /Black=0.09 (flawless)} 1/2-1/2

[Event "Svetozar Gligoric Masters 2022"]
[Site "Belgrade"]
[Date "2022.07.21"]
[Round "6.17"]
[White "Sharan, Rao"]
[Black "Makaraci, Tunahan"]
[Result "0-1"]
[ECO "A06"]
[WhiteElo "2342"]
[BlackElo "2130"]
[Annotator "TA"]
[PlyCount "54"]
[EventDate "2022.07.18"]
[EventCountry "SRB"]
[SourceTitle "playchess.com"]
[Source "ChessBase"]
[SourceQuality "1"]
[TimeControl "40/5400+30:900+30"]

{[%evp 9,54,3,13,8,10,10,16,0,8,0,0,0,0,0,10,-12,0,-31,-27,-47,-54,-154,-147,-154,-138,-264,-226,-265,-242,-294,-298,-284,-283,-375,-370,-736,-731,-790,-675,-2622,-1042,-29989,-1455,-29994,-6324,-29997,-29995]} 1. Nf3 d5 2. b3 Bg4 3. Bb2 Nd7 4. d4 Ngf6 5. e3 e6 6. Be2 {A06: Réti Opening: 1 Nf3 d5.} Bd6 7. c4 c6 8. Nc3 {The position is equal.} Ne4 9. O-O f5 10. h3 Bxf3 11. Bxf3 O-O {[#]} 12. a4 $146 ({Predecessor:} 12. Rc1 Ndf6 13. a4 Qe7 14. g3 Rad8 15. Kg2 g5 16. Qc2 h5 17. Rh1 Qf7 18. Rcf1 {0-1 (41) Carrillo Carrillo,M (1861)-Martinez Puigros,R (1882) ICCF email 2020}) 12... Qe7 13. Qc1 Ng5 14. Qd1 Rf6 15. Re1 (15. Bh5 $1 $15) 15... Rg6 $17 {Black is more active.} 16. Kf1 Rf8 17. Nb1 (17. cxd5 $17 {is a better defense.} exd5 18. Bh5) 17... Ne4 $19 18. Ba3 Qh4 $1 {[%csl Ge4][%cal Rh4f2]} 19. Qc2 Bxa3 20. Rxa3 Ndf6 21. Nc3 Ng5 ({Stronger than} 21... Nxc3 22. Qxc3 Ng4 23. Ra2 (23. hxg4 $2 fxg4 24. g3 Qf6 $19) 23... Nh2+ 24. Ke2 $17) 22. Qd1 $2 (22. Ke2 Nxf3 23. gxf3) 22... Nfe4 23. Bxe4 fxe4 {[%csl Gf8][%cal Rh4f2]} 24. Ra2 {[#]} Nf3 $1 {[%mdl 512]} 25. cxd5 {[#]} (25. Qa1 Nh2+) 25... exd5 $1 26. g3 {[#]} (26. Qc1 Nh2+) 26... Rxg3 27. fxg3 Qxg3 {Weighted Error Value: White=1.47/Black=0.88} 0-1

[Event "Svetozar Gligoric Masters 2022"]
[Site "Belgrade"]
[Date "2022.07.21"]
[Round "6.18"]
[White "Song, Raymond"]
[Black "Masic, Predrag"]
[Result "1-0"]
[ECO "B12"]
[WhiteElo "2499"]
[BlackElo "2242"]
[Annotator "TA"]
[PlyCount "153"]
[EventDate "2022.07.18"]
[EventCountry "SRB"]
[SourceTitle "playchess.com"]
[Source "ChessBase"]
[SourceQuality "1"]
[TimeControl "40/5400+30:900+30"]

{[%evp 9,153,12,18,0,0,0,35,27,47,42,42,43,67,52,73,48,44,39,50,46,48,48,50,44,47,42,46,27,47,46,47,23,21,27,27,27,27,22,16,29,27,24,38,23,8,0,0,0,0,0,14,0,0,-97,0,0,0,0,10,4,21,21,27,21,28,0,0,0,34,18,25,16,29,19,39,38,62,62,55,33,40,38,82,82,93,62,80,63,67,36,45,36,45,37,51,40,46,41,76,41,34,0,0,0,0,0,0,0,0,0,0,0,19,21,40,19,19,19,69,69,69,70,12828,12830,12837,12838,12838,12839,12839,12837,12837,12837,12839,12839,12841,12842,12842,12841,12842,12842,12844,12844,12844,12845,12847,12845]} 1. e4 c6 2. d4 d5 3. e5 c5 4. Nf3 e6 5. Bd3 cxd4 6. O-O {B12: Caro-Kann: Advance Variation.} Nc6 7. Nbd2 {[%cal Bb1d2,Bd2b3,Bb3d4][%mdl 32]} Nge7 8. Nb3 {White is slightly better.} Ng6 {[#]} 9. Re1 $146 ({Predecessor:} 9. Qe2 Qb6 10. h4 Bd7 11. g3 f6 12. Bxg6+ hxg6 13. Qd3 O-O-O 14. Bf4 fxe5 15. Bxe5 Nxe5 16. Nxe5 {0-1 (48) Tomazini,Z (2001)-Kostanjevec,T (1952) Slovenske Konjice 2007}) 9... Bb4 10. Bd2 Bxd2 11. Qxd2 O-O 12. Bxg6 fxg6 13. Nbxd4 Qb6 14. c3 Bd7 15. Re2 Rae8 16. Qg5 Ne7 17. Qg4 h6 18. Rae1 Rf7 19. g3 Ref8 20. Kg2 Qa6 21. a3 Qd3 {[%cal Of7f3]} 22. Re3 Qc4 23. h3 g5 24. R1e2 {Active counter play!} Qa6 25. h4 gxh4 26. Nxh4 g5 27. Rf3 Rxf3 28. Nhxf3 Qd3 29. Re1 Qg6 30. Rh1 Kg7 31. Ne1 (31. a4 $11 {keeps the balance.}) 31... Nc6 (31... Qf7 32. Nd3 $16) ({Black should try} 31... Qe4+ $1 $17 32. Qxe4 dxe4) 32. Nef3 $11 Ne7 33. Re1 Rf7 34. Nd2 Rf8 35. Qe2 Rf7 36. Qe3 (36. N2f3 {feels hotter.} Qh5 37. Rh1 Qg4 38. Qd2) 36... b6 37. a4 Nc6 38. Nb5 Qc2 39. Nd6 Rf8 40. Nf3 Qg6 ({Much less strong is} 40... Qxa4 41. Nxg5 $1 Qg4 42. Nf3 $16 (42. Ngf7 Rxf7 43. Nxf7 Kxf7 $11)) 41. Nd4 Kg8 42. b3 Qg7 43. Qe2 Qg6 44. N6b5 Nxd4 45. Nxd4 Qf7 46. Ra1 {[%cal Be1a1,Ba1a2,Ba2d2,Bd2d3,Bd3e3][%mdl 32]} a6 47. Ra2 Bc8 48. Rd2 Qg6 49. Rd3 Qe4+ 50. Qxe4 dxe4 $14 {[%mdl 4096] Endgame KRB-KRN} 51. Re3 Kf7 52. g4 Bb7 53. Kf1 Kg6 54. Ke2 ({Reject} 54. Nxe6 Re8 55. Nd4 Rxe5 $11) 54... Rc8 55. a5 bxa5 {[%cal Oa5a4]} 56. Nxe6 a4 (56... Bd5 $5 57. Nd4 a4 $14) 57. bxa4 Bd5 58. Nd4 Re8 59. Rh3 Rxe5 60. Ke3 Be6 61. Nxe6 Rxe6 $11 {KR-KR} 62. c4 {Hoping for a5.} (62. a5 $5 {[%cal Rc3c4]}) 62... Kf7 63. Kd4 {And now a5 would win.} Rf6 (63... Ke7 $11) 64. Kxe4 $14 {Black must now prevent Rf3.} Rf4+ $1 65. Kd5 Rxf2 $2 {[%mdl 8192] This costs Black the game.} (65... Rxg4 $14 66. Rxh6 Rf4) 66. Rxh6 $18 {White is clearly winning.} Rf4 67. Rxa6 Rxg4 68. c5 {[%cal Bc4c5,Bc5c6][%mdl 32]} Rg1 69. Ra7+ Kf6 70. c6 Rd1+ {[#]} 71. Kc5 $1 Rc1+ 72. Kb6 Rb1+ 73. Ka6 Rc1 74. Kb7 Rb1+ 75. Kc8 g4 76. Rb7 Ra1 77. Rb4 {Weighted Error Value: White=0.10 (very precise) /Black=0.09 (flawless)} 1-0